Cogmind - Beta 14 --- EXPLORER MODE // 2024.10.03 @ 15:54:49 Player: Kinga Result: Destroyed by G-73 Enforcer with Heavy Laser Performance ------------- Evolutions (9) 4500 Regions Visited (21) 4200 Robots Destroyed (258) 1290 Value Destroyed (16344) 16344 Prototype IDs (48) 960 Alien Tech Used (6) 1200 Bonus (9528) 9528 TOTAL SCORE: 38022 Bonus ------- High Alert Combat Kills 642 Follower Combat Kills 1856 Met Zhirov 300 Built Enhanced Grunts 300 A7 Reached Mainframe 300 Found Hidden Lab 3000 Used Core Reset Matrix 3000 Pursued by Intercept 500 Destroyed MAIN.C Guards 500 Friendly Fire -870 Cogmind --------- Core Integrity 0/1600 Matter 34/300 Energy 91/100 System Corruption 25% Temperature Cool (12) Movement Core (50) Location -1/Command Parts ------- > --- POWER (2) -------- (None) > --- PROPULSION (4) --- (None) > --- UTILITY (16) ----- (None) > --- WEAPON (4) ------- (None) > --- INVENTORY (5) ---- Gamma Rifle Railgun Micro-nuke Launcher Guided Remote Datajack Peak State ------------ > --- POWER ------------ Reinforced Deuterium Engine Improved Quantum Reactor > --- PROPULSION ------- Advanced Heavy Siege Treads High-density Centrium Heavy Treads > --- UTILITY ---------- Coolant Network High-capacity Storage Unit Advanced Targeting Computer Experimental Targeting Computer Weapon Mount Advanced Target Analyzer Advanced Target Analyzer Experimental Phase Shifter Experimental Powered Armor Quantum Router LC Capacitor > --- WEAPON ----------- Quantum Rifle Quantum Rifle Enhanced Quantum Rifle Advanced KE Penetrator > --- INVENTORY -------- Reinforced Deuterium Engine Quantum Reactor Armored Heavy Treads Enhanced Armored Heavy Treads Advanced Heat Sink Advanced Cooling System Improved Energy Well Heavy Armor Plating Centrium Medium Armor Plating Advanced Shield Generator Transdimensional Reconstructor Core Regenerator Warp Cannon Warp Cannon Heavy Missile Launcher Micro-nuke Launcher Guided Remote Datajack [Rating: 219] Favorites ----------- Power Quantum Reactor Engine Heavy Ion Engine Reactor Quantum Reactor Propulsion Centrium Heavy Treads Treads Centrium Heavy Treads Utility Advanced Targeting Computer Device Advanced Heat Sink Storage High-capacity Storage Unit Processor Advanced Targeting Computer Hackware Quantum Router Protection Centrium Medium Armor Plating Artifact LC Capacitor Weapon Heavy Ion Cannon Energy Gun Quantum Rifle Energy Cannon Heavy Ion Cannon Ballistic Gun Heavy Machine Gun Ballistic Cannon Hypervelocity Gauss Cannon Launcher Micro-nuke Launcher Special Weapon Guided Remote Datajack Slashing Weapon Ionic Axe Build | -11 -10 -9 -8 -8 -7 -6 -6 -6 -6 -5 -5 -5 -5 -4 -4 -4 -4 -3 -2 -1 -1 ------- Run | Yrd Mat Mat Mat Sto Fac Fac Ext Cet Arc Fac Upp Upp Zhi Pro Fac Arm Lab Res Res Acc Com Slots Evolved 19 | . 1 2 2 . 2 2 . . . 2 . . . . 2 . . 2 2 2 . Power 1 | . . . . . . . . . . . . . . . 1 . . . . . . Propulsion 2 | . . . 2 . . . . . . . . . . . . . . . . . . Utility 14 | . 1 . . . 2 2 . . . 2 . . . . 1 . . 2 2 2 . Weapon 2 | . . 2 . . . . . . . . . . . . . . . . . . . Parts Attached 213 | 7 6 7 3 5 9 11 14 7 3 10 1 . 5 2 3 7 8 4 31 5 65 Power 16 | 1 . 1 . 1 . . 1 1 1 . . . . . 1 . . . 2 . 7 Engine 6 | 1 . 1 . 1 . . 1 . . . . . . . . . . . 1 . 1 Core . | . . . . . . . . . . . . . . . . . . . . . . Reactor 10 | . . . . . . . . 1 1 . . . . . 1 . . . 1 . 6 Propulsion 35 | 2 3 2 3 . 2 4 6 2 . . . . . . . . . . 2 . 9 Treads 35 | 2 3 2 3 . 2 4 6 2 . . . . . . . . . . 2 . 9 Leg . | . . . . . . . . . . . . . . . . . . . . . . Wheel . | . . . . . . . . . . . . . . . . . . . . . . Hover . | . . . . . . . . . . . . . . . . . . . . . . Flight . | . . . . . . . . . . . . . . . . . . . . . . Utility 76 | 2 2 . . 2 5 3 5 1 . 6 . . 1 1 2 7 5 2 13 2 17 Device 40 | . . . . 1 3 2 4 . . 4 . . 1 1 1 6 1 1 9 2 4 Storage 4 | 1 1 . . . . . . . . 1 . . . . . . . . . . 1 Processor 15 | . 1 . . . 2 . . . . . . . . . 1 1 . 1 2 . 7 Hackware 1 | . . . . . . . . . . . . . . . . . 1 . . . . Protection 15 | 1 . . . 1 . 1 1 1 . 1 . . . . . . 2 . 2 . 5 Artifact 1 | . . . . . . . . . . . . . . . . . 1 . . . . Weapon 86 | 2 1 4 . 2 2 4 2 3 2 4 1 . 4 1 . . 3 2 14 3 32 Energy Gun 23 | 2 1 . . . 1 2 . . 1 1 . . . . . . . 1 9 . 5 Energy Cannon 30 | . . 2 . . 1 2 2 3 . 3 . . 3 1 . . 2 . . 2 9 Ballistic Gun 18 | . . 2 . 2 . . . . 1 . . . . . . . . 1 3 . 9 Ballistic Cannon 3 | . . . . . . . . . . . 1 . 1 . . . . . 1 . . Launcher 9 | . . . . . . . . . . . . . . . . . . . 1 1 7 Special Weapon 1 | . . . . . . . . . . . . . . . . . 1 . . . . Impact Weapon . | . . . . . . . . . . . . . . . . . . . . . . Slashing Weapon 2 | . . . . . . . . . . . . . . . . . . . . . 2 Piercing Weapon . | . . . . . . . . . . . . . . . . . . . . . . Special Melee Weapon . | . . . . . . . . . . . . . . . . . . . . . . Unidentified Prototypes 32 | . . 2 . 1 1 . . 2 2 2 . . 1 . . 5 5 1 5 . 5 Corrupted Parts 3 | . . . . . . . . . 3 . . . . . . . . . . . . System Corruption 5 | . . . . . . . . . 5 . . . . . . . . . . . . Parts Lost 67 | . . . . 1 . 2 4 . . 1 1 . . . . 1 1 . 11 . 45 Power 9 | . . . . 1 . . . . . . . . . . . . . . 1 . 7 Propulsion 9 | . . . . . . 1 2 . . . . . . . . . . . . . 6 Utility 22 | . . . . . . . 1 . . . . . . . . 1 . . 4 . 16 Weapon 27 | . . . . . . 1 1 . . 1 1 . . . . . 1 . 6 . 16 Highest Loss Streak 21 | . . . . 1 . 1 3 . . 1 1 . . . . 1 1 . 4 . 21 To Critical Strikes . | . . . . . . . . . . . . . . . . . . . . . . Average Slot Usage (%) 86 | . 100 100 100 99 99 99 99 89 87 87 88 88 70 88 89 86 81 77 78 76 73 Engine 2 | . 12 10 8 7 7 6 6 . . . . . . . . . . . 2 3 1 Reactor 4 | . . . . . . . . 5 6 5 5 5 5 5 10 10 10 9 5 3 4 Treads 13 | . 25 20 33 33 27 24 24 14 12 11 11 11 11 11 10 10 10 9 8 7 6 Device 15 | . . . . 1 6 12 18 18 18 25 27 27 26 27 29 26 19 10 14 15 7 Storage 5 | . 12 10 8 8 7 6 6 6 6 5 5 5 5 5 5 5 5 4 4 3 3 Processor 14 | . 12 10 8 8 21 18 14 12 12 11 11 11 11 11 10 10 10 12 13 15 26 Protection 5 | . 12 10 8 6 . 6 2 6 6 5 5 5 5 5 5 5 4 4 4 7 4 Energy Gun 2 | . 25 7 . . . 7 1 . . 2 . . . . . . . 2 8 4 2 Energy Cannon 11 | . . 12 16 16 14 14 23 25 25 18 17 16 3 16 15 15 12 7 1 2 3 Ballistic Gun 3 | . . 20 16 16 14 1 . . . . . . . . . . . 3 3 3 6 Ballistic Cannon 1 | . . . . . . . . . . . 3 5 1 5 5 5 5 4 1 . . Peak Build Rating 219 | 7 11 25 31 36 46 58 72 100 107 111 112 112 114 119 134 155 190 204 219 216 215 Average Rating 118 | 5 9 21 29 33 42 52 61 93 100 108 111 112 97 117 133 147 163 199 212 214 153 On Entrance 98 | . 7 11 25 31 35 44 58 71 100 107 111 112 112 114 119 134 153 190 204 206 215 Naked Turns 21 | . . . . . . . . . . . . . . . . . . . . . 21 Heaviest Build 157 | 20 50 65 65 65 63 78 98 106 106 118 113 113 113 116 140 140 157 157 156 153 153 Greatest Support 170 | 40 46 46 90 87 93 105 120 160 160 160 160 160 160 160 160 160 160 160 170 170 170 Greatest Overweight (x) 4 | 4 1 1 . . . . 1 . . . . . . . . . . . . . . Average Overweight (x) . | . . 1 . . . . . . . . . . . . . . . . . . . Largest Inventory Capacity 20 | 10 20 20 20 20 20 20 20 20 20 20 20 20 20 20 20 20 20 20 20 20 20 Average Capacity 19 | 9 12 20 20 20 20 20 20 20 20 20 20 20 20 20 20 20 20 20 20 20 19 Most Carried 20 | 5 10 17 19 20 20 20 20 20 20 20 20 19 20 20 19 20 20 20 20 18 20 Average Carried 17 | 2 7 14 16 19 19 19 18 19 19 19 19 19 19 20 17 19 19 18 18 17 14 Final Capacity 20 | 10 20 20 20 20 20 20 20 20 20 20 20 20 20 20 20 20 20 20 20 20 5 Final Carried 20 | 5 10 17 19 20 20 20 20 19 20 20 19 19 20 20 17 18 20 18 19 18 4 Class Distribution -------------------- 59% | Scavenger-Gunner 34% | Hacker-Gunner 4% | Hacker-Mutant Dominant Class ---------------- Hacker-Mutant | -10/Materials Hacker-Gunner | -9/Materials Hacker-Gunner | -8/Materials Hacker-Gunner | -8/Storage Hacker-Gunner | -7/Factory Hacker-Gunner | -6/Factory Scavenger-Gunner | -6/Extension Scavenger-Gunner | -6/Cetus Scavenger-Gunner | -6/Archives Scavenger-Gunner | -5/Factory Scavenger-Gunner | -5/Upper Caves Scavenger-Gunner | -5/Upper Caves Scavenger-Mutant | -5/Zhirov Scavenger-Gunner | -4/Proximity Caves Scavenger-Gunner | -4/Factory Scavenger-Gunner | -4/Armory Hacker-Gunner | -4/Lab Hacker-Gunner | -3/Research Hacker-Gunner | -2/Research Hacker-Gunner | -1/Access Scavenger-Gunner | -1/Command Resources | -11 -10 -9 -8 -8 -7 -6 -6 -6 -6 -5 -5 -5 -5 -4 -4 -4 -4 -3 -2 -1 -1 ----------- Run | Yrd Mat Mat Mat Sto Fac Fac Ext Cet Arc Fac Upp Upp Zhi Pro Fac Arm Lab Res Res Acc Com Matter Collected 5256 | 242 44 190 102 325 138 182 105 90 . 110 89 40 . 312 111 339 6 349 848 30 1604 Remotely . | . . . . . . . . . . . . . . . . . . . . . . Salvage Created 14935 | . 106 348 270 724 304 1117 954 205 152 1051 81 230 . 684 431 1189 . 871 2362 . 3856 Parts 615 | . 6 28 14 32 22 28 30 9 7 39 2 7 . 17 13 48 . 38 83 . 192 Haulers Intercepted 11 | . . 2 . 2 2 2 . . . 2 . . . . . . . 1 . . . Recyclers Shooed 5 | . . . . 1 . 1 . . . . . . . 1 . . . 1 . . 1 Parts Field Recycled . | . . . . . . . . . . . . . . . . . . . . . . Retrieved Matter . | . . . . . . . . . . . . . . . . . . . . . . Parts Self-Destructed . | . . . . . . . . . . . . . . . . . . . . . . Prevented . | . . . . . . . . . . . . . . . . . . . . . . Kills | -11 -10 -9 -8 -8 -7 -6 -6 -6 -6 -5 -5 -5 -5 -4 -4 -4 -4 -3 -2 -1 -1 ------- Run | Yrd Mat Mat Mat Sto Fac Fac Ext Cet Arc Fac Upp Upp Zhi Pro Fac Arm Lab Res Res Acc Com Combat Hostiles Destroyed 220 | . 6 9 5 12 3 13 12 3 2 14 1 5 . 11 10 18 1 8 31 . 56 Guns 87 | . 5 7 2 7 1 4 1 . . . . . . . . . . 4 26 . 30 Cannons 102 | . . 2 3 5 2 7 7 . 1 13 . 5 . 11 9 17 1 4 1 . 14 AOE 11 | . 1 . . . . . . . . . . . . . 1 1 . . 2 . 6 Classes Destroyed 21 | . 2 5 2 2 . 2 . . . 1 1 1 . . . 1 . . 1 . 3 Worker 5 | . . 1 . . 2 . . . . . . . . . . . . 1 1 . . Builder 2 | . . . . 1 . 1 . . . . . . . . . . . . . . . Hauler 11 | . . 2 . 2 2 2 . . . 2 . . . . . . . 1 . . . Recycler 6 | . . . . 2 . 1 2 . . . . . . . . . . 1 . . . Operator 6 | . . 1 . . . . . . . 2 . . . . . . . . . . 3 Watcher 6 | . 1 . . . . . . . . . . . . . . 2 . 1 1 . 1 Swarmer 36 | . 6 6 . 4 . 2 2 . . 1 . 1 . . 2 5 . . . . 7 Grunt 53 | . . 2 1 2 . 7 3 . . 11 . 1 . 5 6 4 . 5 4 . 2 Brawler 2 | . . . . . . 1 . . . . . . . 1 . . . . . . . Duelist 4 | . . . 1 . . . . . . . . . . . . 2 . . . . 1 Protector 1 | . . . . . . . . . . 1 . . . . . . . . . . . Sentry 45 | . . 1 2 6 3 2 3 . 2 1 . . . 4 2 4 . 2 5 . 8 Demolisher 1 | . . . . . . . . . . . . . . . . 1 . . . . . Hunter 20 | . . . 1 . . . 2 . . . 1 1 . 1 . 1 . . 4 . 9 Programmer 30 | . . . . . . . . . . . . 2 . . . 3 . 1 7 . 17 Heavy 1 | . . . . . . . . . . . . . . . . . . . 1 . . Behemoth 4 | . . . . . . 1 2 . . . . . . . . . . . . . 1 Cetus Guard 3 | . . . . . . . . 3 . . . . . . . . . . . . . M Guard 2 | . . . . . . . . . . . . . . . . . . . . . 2 Tracker 5 | . . . . . . . . . . . . . . . . . . . 5 . . Combat Programmer 7 | . . . . . . . . . . . . . . . . . . . 5 . 2 Striker 1 | . . . . . . . . . . . . . . . . . . . . . 1 Executioner 4 | . . . . . . . . . . . . . . . . . . . . . 4 Alpha 7 2 | . . . . . . . . . . . . . . . . . . . . . 2 Tinkerer 1 | . . . . . . . . . . . 1 . . . . . . . . . . Best Kill Streak 12 | . 3 7 3 12 4 4 3 3 2 4 1 2 . 3 5 5 1 4 7 . 7 Combat Bots Only 7 | . 2 5 3 7 1 4 3 3 2 4 1 2 . 3 5 4 1 3 7 . 7 Max Kills in Single Turn 4 | . 2 4 1 2 1 1 2 1 1 1 1 1 . 1 1 2 1 1 2 . 2 Gunslinging 1 | . . 1 . 1 . . . . . . . . . . . . . . . . 1 Exploded 2 | . 1 . . . . . . . . . . . . . 1 1 . . 2 . 2 Melee . | . . . . . . . . . . . . . . . . . . . . . . Uniques/NPCs Destroyed 1 | . . . . . . . . . . . . . . . . . 1 . . . . A5 (-4/Lab) Combat | -11 -10 -9 -8 -8 -7 -6 -6 -6 -6 -5 -5 -5 -5 -4 -4 -4 -4 -3 -2 -1 -1 -------- Run | Yrd Mat Mat Mat Sto Fac Fac Ext Cet Arc Fac Upp Upp Zhi Pro Fac Arm Lab Res Res Acc Com Hostile Shots Fired 2091 | . 13 27 6 30 39 160 227 . 1 24 11 12 . 25 17 66 16 43 295 . 1079 Missed 537 | . 5 5 2 5 20 69 91 . . 5 3 3 . 7 5 24 9 9 62 . 213 Damage Taken 22562 | . 35 111 42 350 82 779 883 8 13 486 98 99 . 184 140 631 118 495 3406 . 14602 Core 2155 | . . 6 11 23 12 65 29 . . 11 9 . . 9 . 10 . . 149 . 1821 Absorbed by Shields 1374 | . . . . . . . 66 8 . 4 . . . 76 57 252 . . 421 . 490 Reduced by Siege Mode 1868 | . . . . . . . . . . . . . . . . 29 . . 133 . 1706 Ignored by Resistances 14032 | . 27 79 26 214 57 489 616 10 7 281 58 60 . 155 119 516 69 296 2238 . 8715 Core Remaining (%) 95 | 100 100 98 . 93 98 . . . 88 . . . . 97 . . 89 100 89 . . Volleys Fired 563 | . 9 13 8 26 8 39 28 4 3 35 8 7 . 28 13 34 19 32 82 . 167 Largest 4 | . 2 4 4 4 4 4 4 4 4 4 4 4 . 4 4 4 4 3 4 . 4 Hottest 311 | . 80 182 182 186 186 280 302 298 295 295 295 291 . 306 306 306 306 161 288 . 311 Shots Fired 1758 | . 18 46 30 76 32 146 93 16 12 128 32 28 . 77 52 118 54 56 288 . 456 Gun 787 | . 18 36 16 47 16 54 9 . . 10 . . . . . . . 24 277 . 280 Cannon 947 | . . 10 14 29 16 92 84 16 12 118 32 28 . 77 52 118 54 32 9 . 154 Launcher 24 | . . . . . . . . . . . . . . . . . . . 2 . 22 Special . | . . . . . . . . . . . . . . . . . . . . . . Kinetic 506 | . . 26 16 47 16 14 . . . . 7 7 . 27 13 34 15 24 72 . 188 Thermal 1133 | . . 10 14 29 16 132 93 16 12 128 25 21 . 50 39 84 39 32 214 . 179 Explosive 19 | . . . . . . . . . . . . . . . . . . . 2 . 17 Electromagnetic 100 | . 18 10 . . . . . . . . . . . . . . . . . . 72 Robot Hit Streak 78 | . 5 13 14 11 24 34 26 19 28 70 78 19 . 31 27 58 26 36 68 . 48 Robot Miss Streak 2 | . 1 1 1 2 1 1 1 . . 1 1 1 . 1 1 1 2 1 2 . 2 Penetration Max 1 | . . . . . . . . . . . . . . . 1 1 . 1 . . 1 Secondary Targets 13 | . . 3 . 1 . . . . . . . . . . . . . . 4 . 5 Max Gunslinging Chain 1 | . . 1 . 1 . . . . . . . . . . . . . . 1 . 1 Shots Hit Robots 1339 | . 12 27 15 47 24 123 69 11 9 111 13 21 . 64 38 75 44 31 235 . 370 Core Hits 569 | . 8 15 8 20 12 41 24 2 6 40 4 5 . 20 14 46 7 18 91 . 188 Critical Kills 40 | . . . . 1 . 1 2 2 1 1 1 1 . 8 2 3 . 3 3 . 11 Critical Parts Destroyed 39 | . . . . 1 . . . . . . 2 . . 7 . 5 3 7 7 . 7 Critical Strikes 94 | . . . . 2 . 1 3 2 1 1 4 1 . 16 3 10 3 10 11 . 26 Burn 1 | . . . . . . . 1 . . . . . . . . . . . . . . Meltdown 15 | . . . . 1 . 1 2 2 1 1 1 . . . . . . . . . 6 Destroy 70 | . . . . 1 . . . . . . 3 1 . 16 3 10 3 10 11 . 12 Corrupt 8 | . . . . . . . . . . . . . . . . . . . . . 8 Melee Attacks . | . . . . . . . . . . . . . . . . . . . . . . Impact . | . . . . . . . . . . . . . . . . . . . . . . Slashing . | . . . . . . . . . . . . . . . . . . . . . . Piercing . | . . . . . . . . . . . . . . . . . . . . . . Sneak Attacks . | . . . . . . . . . . . . . . . . . . . . . . Combat Hostiles . | . . . . . . . . . . . . . . . . . . . . . . Follow-up Attacks . | . . . . . . . . . . . . . . . . . . . . . . Damage Inflicted 43044 | 5 245 530 298 942 501 2630 1848 273 241 2909 396 576 . 1593 1396 3820 1385 2108 8341 . 13007 Guns 17019 | . 137 296 74 454 169 940 153 . . 219 . . . . . . . 838 7837 . 5902 Cannons 21179 | . . 122 207 409 306 1677 1695 273 241 2690 396 576 . 1505 1146 2972 1316 1270 105 . 4273 Explosions 4681 | . 108 112 . . . . . . . . . . . 88 250 843 69 . 399 . 2812 Melee . | . . . . . . . . . . . . . . . . . . . . . . Ramming 165 | 5 . . 17 79 26 13 . . . . . . . . . 5 . . . . 20 Kinetic 7590 | . . 212 74 454 169 178 . . . . 43 43 . 348 86 385 134 415 1659 . 3390 Thermal 30637 | . 108 234 207 409 306 2439 1848 273 241 2909 353 533 . 1180 1310 3430 1251 1693 6283 . 5630 Explosive 2747 | . . . . . . . . . . . . . . . . . . . 399 . 2348 Electromagnetic 1905 | . 137 84 . . . . . . . . . . . 65 . . . . . . 1619 Impact . | . . . . . . . . . . . . . . . . . . . . . . Slashing . | . . . . . . . . . . . . . . . . . . . . . . Piercing . | . . . . . . . . . . . . . . . . . . . . . . Highest Corruption 25 | . . . . 3 2 . . . 5 1 1 1 1 1 . . 2 2 12 . 25 Average Corruption 6 | . . . . 2 2 . . . 2 1 1 1 1 1 . . 1 1 4 . 17 Corruption Purged . | . . . . . . . . . . . . . . . . . . . . . . Corruption Blocked . | . . . . . . . . . . . . . . . . . . . . . . Effects 156 | . . . . 9 . . . . . 6 2 9 1 3 . . 2 . 17 . 107 Message Errors 30 | . . . . 1 . . . . . 2 . 1 . 2 . . 1 . 6 . 17 Matter Fused 36 | . . . . 2 . . . . . . 1 . . . . . . . 4 . 29 Heat Flow Errors 13 | . . . . 1 . . . . . 2 . . . . . . . . 1 . 9 Energy Discharges 23 | . . . . 1 . . . . . . 1 3 . . . . . . 3 . 15 Parts Rejected 2 | . . . . . . . . . . 1 . . . . . . . . . . 1 Parts Fused 1 | . . . . 1 . . . . . . . . . . . . . . . . . Data Loss (minor) 22 | . . . . 2 . . . . . 1 . 4 1 1 . . . . 1 . 12 Data Loss (major) 4 | . . . . . . . . . . . . 1 . . . . . . . . 3 Misfires 4 | . . . . . . . . . . . . . . . . . . . . . 4 Alerts 1 | . . . . . . . . . . . . . . . . . . . . . 1 Misdirections 2 | . . . . . . . . . . . . . . . . . . . . . 2 Weapon Failures 18 | . . . . 1 . . . . . . . . . . . . 1 . 2 . 14 Overload Shots 1 | . . . . . . . . . . . . . . . . . . . . . 1 Effects 1 | . . . . . . . . . . . . . . . . . . . . . 1 Heat Surge 1 | . . . . . . . . . . . . . . . . . . . . . 1 Overflow Damage 749 | . . . . 1 . 13 . . . 98 . 47 . 15 1 270 94 36 74 . 100 Projectiles 574 | . . . . 1 . 13 . . . 98 . 47 . 15 1 228 94 36 9 . 32 Explosions 175 | . . . . . . . . . . . . . . . . 42 . . 65 . 68 Melee . | . . . . . . . . . . . . . . . . . . . . . . Knockbacks 13 | . . . 1 . 1 1 . . . . 1 3 . 2 . 1 1 1 1 . . Impact 3 | . . . 1 . 1 1 . . . . . . . . . . . . . . . Kinetic 9 | . . . . . . . . . . . 1 2 . 2 . 1 1 1 1 . . Secondary 1 | . . . . . . . . . . . . 1 . . . . . . . . . Self-Inflicted Damage 322 | . . . . . . . . . . . . . . . . 52 . . . . 270 Shots 7 | . . . . . . . . . . . . . . . . 2 . . . . 5 Rammed 14 | 1 . . 2 4 1 1 . . . . . . . . . 1 . . . . 4 Targets Rammed 17 | 1 . . 2 5 3 1 . . . . . . . . . 1 . . . . 4 Kicked . | . . . . . . . . . . . . . . . . . . . . . . Crushed 3 | . . . . 1 2 . . . . . . . . . . . . . . . . Highest Temperature 491 | . 108 290 385 476 246 271 172 359 328 491 72 234 . 84 135 73 . 239 432 . 188 Average Temperature 109 | . 37 124 138 203 90 88 51 223 156 139 37 85 . 28 48 54 . 76 145 . 35 Received Heat Transfer 2660 | . . 39 18 117 42 406 351 . . 177 9 27 . 83 26 605 . 205 147 . 408 Effects 11 | . . 2 . 6 . 1 . 1 . . . . . . . . . . 1 . . Shutdowns 2 | . . . . 1 . . . . . . . . . . . . . . 1 . . Energy Bleed 6 | . . 2 . 2 . 1 . 1 . . . . . . . . . . . . . Interference 1 | . . . . 1 . . . . . . . . . . . . . . . . . Matter Decay 2 | . . . . 2 . . . . . . . . . . . . . . . . . Siege Activations 10 | . . . . . . . . . . . . . . . . 1 . . 4 . 5 Total Turns 288 | . . . . . . . . . . . . . . . . 21 . . 95 . 172 Longest Duration 51 | . . . . . . . . . . . . . . . . 21 . . 41 . 51 Robots Corrupted 1 | . . . . 1 . . . . . . . . . . . . . . . . . Combat Hostiles . | . . . . . . . . . . . . . . . . . . . . . . Parts Fried 12 | . . . . 1 . . . . . . . . . . . . . . . . 11 Impact Corruptions 1 | . . . . 1 . . . . . . . . . . . . . . . . . Robots Melted 23 | . . . . 1 . 2 5 3 1 2 1 . . . . . . . 2 . 6 Combat Hostiles 20 | . . . . . . 2 4 3 1 1 1 . . . . . . . 2 . 6 Parts Melted 90 | . . 2 . 3 1 20 17 3 1 9 3 . . 5 . 3 . 2 13 . 8 Heat Transferred 32139 | . 150 372 370 740 555 4411 2946 433 346 4120 333 370 . 1005 520 1668 457 1036 6808 . 5499 Parts Sabotaged . | . . . . . . . . . . . . . . . . . . . . . . Parts Stolen . | . . . . . . . . . . . . . . . . . . . . . . Parts Stripped . | . . . . . . . . . . . . . . . . . . . . . . Power Chain Reactions 12 | . 2 1 . . . . . . . . . . . 1 1 3 1 . . . 3 Alert | -11 -10 -9 -8 -8 -7 -6 -6 -6 -6 -5 -5 -5 -5 -4 -4 -4 -4 -3 -2 -1 -1 ------- Run | Yrd Mat Mat Mat Sto Fac Fac Ext Cet Arc Fac Upp Upp Zhi Pro Fac Arm Lab Res Res Acc Com Peak Influence 1239 | . 176 335 258 513 221 423 267 106 150 1239 . . . . 408 712 . 253 388 17 506 Initial 169 | . . . 101 77 169 39 43 28 29 36 . . . . 52 146 . . 13 12 7 Average 207 | . 88 194 169 242 123 222 97 97 141 735 . . . . 165 407 . 108 107 12 189 Maximum Alert Level 4 | . . 1 1 2 1 2 1 . . 4 . . . . 2 3 . 1 1 . 2 Low Security (%) 65 | 100 100 44 62 61 85 52 84 100 100 18 . . . . 68 15 . 92 74 100 57 Level 1 21 | . . 55 37 18 14 39 15 . . . . . . . 22 34 . 7 25 . 32 Level 2 7 | . . . . 20 . 7 . . . 16 . . . . 9 48 . . . . 9 Level 3 3 | . . . . . . . . . . 46 . . . . . 1 . . . . . Level 4 1 | . . . . . . . . . . 17 . . . . . . . . . . . Level 5 . | . . . . . . . . . . . . . . . . . . . . . . High Security . | . . . . . . . . . . . . . . . . . . . . . . Max Security . | . . . . . . . . . . . . . . . . . . . . . . Squads Dispatched 47 | . . 1 1 1 1 . 2 . . 10 . . . 1 2 4 . 1 11 . 12 Investigation 11 | . . . . 1 . . 2 . . 1 . . . 1 . 2 . . . . 4 Extermination 14 | . . . . . 1 . . . . . . . . . 1 2 . . 3 . 7 Reinforcement 10 | . . 1 1 . . . . . . 4 . . . . 1 . . 1 1 . 1 Assault 2 | . . . . . . . . . . 2 . . . . . . . . . . . Garrison 3 | . . . . . . . . . . 3 . . . . . . . . . . . Intercept 7 | . . . . . . . . . . . . . . . . . . . 7 . . Searches Triggered . | . . . . . . . . . . . . . . . . . . . . . . Construction Impeded 1 | . . . . . . . . . . 1 . . . . . . . . . . . Haulers Reinforced 3 | . . . . . . . . . . 2 . . . . . . . 1 . . . Active Scanning Responses . | . . . . . . . . . . . . . . . . . . . . . . Cargo Convoy Interrupts . | . . . . . . . . . . . . . . . . . . . . . . Stealth | -11 -10 -9 -8 -8 -7 -6 -6 -6 -6 -5 -5 -5 -5 -4 -4 -4 -4 -3 -2 -1 -1 --------- Run | Yrd Mat Mat Mat Sto Fac Fac Ext Cet Arc Fac Upp Upp Zhi Pro Fac Arm Lab Res Res Acc Com Distress Signals 17 | . . 1 . 1 . 1 . 1 . 1 . . . 2 . 5 . 1 1 . 3 Communications Jammed . | . . . . . . . . . . . . . . . . . . . . . . Distress Signals . | . . . . . . . . . . . . . . . . . . . . . . Times Spotted 320 | . 10 15 6 13 3 17 18 5 3 33 3 6 . 17 10 33 2 9 35 . 82 Peak Tracking Total 11 | . 3 6 2 3 1 4 3 5 2 4 2 3 . 5 6 5 1 3 7 . 11 Tactical Retreats 7 | . . 2 . . . 1 . . . . . 1 . . . . . . 1 . 2 Traps | -11 -10 -9 -8 -8 -7 -6 -6 -6 -6 -5 -5 -5 -5 -4 -4 -4 -4 -3 -2 -1 -1 ------- Run | Yrd Mat Mat Mat Sto Fac Fac Ext Cet Arc Fac Upp Upp Zhi Pro Fac Arm Lab Res Res Acc Com Traps Triggered 15 | . 1 . . 2 1 1 1 . . 2 . . . . 1 . . . 1 . 5 Indirectly . | . . . . . . . . . . . . . . . . . . . . . . Trap Hack Attempts . | . . . . . . . . . . . . . . . . . . . . . . Triggered . | . . . . . . . . . . . . . . . . . . . . . . Disarmed . | . . . . . . . . . . . . . . . . . . . . . . Reprogrammed . | . . . . . . . . . . . . . . . . . . . . . . Reused . | . . . . . . . . . . . . . . . . . . . . . . Traps Extracted . | . . . . . . . . . . . . . . . . . . . . . . Installed . | . . . . . . . . . . . . . . . . . . . . . . Triggered 1 | . . . . . . . . . . . . 1 . . . . . . . . . Machines | -11 -10 -9 -8 -8 -7 -6 -6 -6 -6 -5 -5 -5 -5 -4 -4 -4 -4 -3 -2 -1 -1 ---------- Run | Yrd Mat Mat Mat Sto Fac Fac Ext Cet Arc Fac Upp Upp Zhi Pro Fac Arm Lab Res Res Acc Com Machines Disabled 30 | . 1 . . . . . 3 . . 7 1 . . 3 1 5 2 . 1 . 6 Max in Single Turn 2 | . 1 . . . . . 1 . . . 1 . . 1 1 1 1 . 1 . 2 Garrison Access 5 | . . . . 1 1 . . . . 1 . . . . 1 . . . 1 . . Phase Generator 1 | . . . . . . . . . . . . . . . . . . . . . 1 Machines Repaired . | . . . . . . . . . . . . . . . . . . . . . . Machines Dismantled . | . . . . . . . . . . . . . . . . . . . . . . Machines Sabotaged . | . . . . . . . . . . . . . . . . . . . . . . Overloaded Fab Kills . | . . . . . . . . . . . . . . . . . . . . . . Hacking | -11 -10 -9 -8 -8 -7 -6 -6 -6 -6 -5 -5 -5 -5 -4 -4 -4 -4 -3 -2 -1 -1 --------- Run | Yrd Mat Mat Mat Sto Fac Fac Ext Cet Arc Fac Upp Upp Zhi Pro Fac Arm Lab Res Res Acc Com Machines Accessed 55 | . 2 2 1 4 3 . 8 1 . 5 1 . 5 1 1 2 3 2 3 3 8 Terminals 40 | . 2 2 1 3 1 . 8 1 . 3 1 . . 1 . 2 . 2 2 3 8 Fabricators 2 | . . . . . 1 . . . . 1 . . . . . . . . . . . Repair Stations . | . . . . . . . . . . . . . . . . . . . . . . Recycling Units . | . . . . . . . . . . . . . . . . . . . . . . Scanalyzers . | . . . . . . . . . . . . . . . . . . . . . . Garrison Access 5 | . . . . 1 1 . . . . 1 . . . . 1 . . . 1 . . Total Hacks 163 | . 6 3 4 7 8 . 15 1 . 14 1 . 18 1 1 7 23 10 17 4 23 Successful 100 | . 4 2 2 4 6 . 9 1 . 4 1 . 18 1 1 4 23 4 7 3 6 Failed 63 | . 2 1 2 3 2 . 6 . . 10 . . . . . 3 . 6 10 1 17 Catastrophic 15 | . 2 . . 2 . . 2 . . 1 . . . . . . . . 3 . 5 Database Lockouts . | . . . . . . . . . . . . . . . . . . . . . . Manual 37 | . 2 1 3 4 2 . 2 1 . 4 . . . . . 1 1 2 10 . 4 Terminals 107 | . 6 3 4 6 4 . 15 1 . 8 1 . . 1 . 7 . 10 14 4 23 Fabricators 4 | . . . . . 1 . . . . 3 . . . . . . . . . . . Repair Stations . | . . . . . . . . . . . . . . . . . . . . . . Recycling Units . | . . . . . . . . . . . . . . . . . . . . . . Scanalyzers . | . . . . . . . . . . . . . . . . . . . . . . Garrison Access 11 | . . . . 1 3 . . . . 3 . . . . 1 . . . 3 . . Terminal Hacks 94 | . 4 2 2 3 4 . 8 1 . 4 1 . 18 1 . 4 23 4 6 3 6 Record 34 | . . . . . . . 1 . . . 1 . 6 . . . 22 1 . . 3 Part Schematic 5 | . 1 . . . . . . . . . . . 4 . . . . . . . . Robot Analysis 8 | . . 1 . . . . . . . . . . 4 . . 1 . 1 . . 1 Prototype ID Bank 8 | . 1 . . 1 . . 1 . . . . . 4 . . . . . . . 1 Open Door 11 | . . . . 1 . . 5 1 . . . . . 1 . . . . . 3 . Level Access Points 6 | . . 1 1 1 1 . . . . . . . . . . 1 . . . . 1 Branch Access Points 4 | . . . . . 1 . 1 . . 1 . . . . . 1 . . . . . Alert Level 1 | . . . . . . . . . . . . . . . . . . . 1 . . Unreport Threat 7 | . . . . . . . . . . 3 . . . . . . . . 4 . . Transport Status 1 | . 1 . . . . . . . . . . . . . . . . . . . . Hauler Manifests 4 | . 1 . 1 . 1 . . . . . . . . . . . . 1 . . . Registered Prototypes 1 | . . . . . 1 . . . . . . . . . . . . . . . . Zone Layout 3 | . . . . . . . . . . . . . . . . 1 . 1 1 . . Release Object 1 | . . . . . . . . . . . . . . . . . 1 . . . . Fabricator Hacks 1 | . . . . . 1 . . . . . . . . . . . . . . . . Network Status 1 | . . . . . 1 . . . . . . . . . . . . . . . . Repair Station Hacks . | . . . . . . . . . . . . . . . . . . . . . . Recycling Unit Hacks . | . . . . . . . . . . . . . . . . . . . . . . Scanalyzer . | . . . . . . . . . . . . . . . . . . . . . . Garrison Access Hacks 4 | . . . . 1 1 . . . . . . . . . 1 . . . 1 . . Seal Access 4 | . . . . 1 1 . . . . . . . . . 1 . . . 1 . . Unauthorized Hacks 1 | . . . . . . . 1 . . . . . . . . . . . . . . Terminals 1 | . . . . . . . 1 . . . . . . . . . . . . . . Assimilate 1 | . . . . . . . 1 . . . . . . . . . . . . . . Fabricators . | . . . . . . . . . . . . . . . . . . . . . . Repair Stations . | . . . . . . . . . . . . . . . . . . . . . . Recycling Units . | . . . . . . . . . . . . . . . . . . . . . . Scanalyzers . | . . . . . . . . . . . . . . . . . . . . . . Garrison Access . | . . . . . . . . . . . . . . . . . . . . . . Data Cores Recovered 5 | . . 1 . . . . . . . 2 . . . . . . . . . . 2 Used 3 | . . 1 . . . . . . . 1 . . . . . . . . . . 1 Hacking Detections 29 | . 2 1 . 1 1 . 6 . . 4 . . . . . 2 . 2 2 . 8 Full Trace Events 8 | . . . . 1 . . 2 . . 1 . . . . . 1 . . . . 3 Feedback Events . | . . . . . . . . . . . . . . . . . . . . . . Feedback Blocked . | . . . . . . . . . . . . . . . . . . . . . . Robot Schematics Acquired . | . . . . . . . . . . . . . . . . . . . . . . Robots Built . | . . . . . . . . . . . . . . . . . . . . . . Authchips . | . . . . . . . . . . . . . . . . . . . . . . Time . | . . . . . . . . . . . . . . . . . . . . . . Total Robot Build Rating . | . . . . . . . . . . . . . . . . . . . . . . Part Schematics Acquired 5 | . 1 . . . . . . . . . . . 4 . . . . . . . . Parts Built . | . . . . . . . . . . . . . . . . . . . . . . Authchips . | . . . . . . . . . . . . . . . . . . . . . . Time . | . . . . . . . . . . . . . . . . . . . . . . Total Part Build Rating . | . . . . . . . . . . . . . . . . . . . . . . Parts Repaired . | . . . . . . . . . . . . . . . . . . . . . . Time . | . . . . . . . . . . . . . . . . . . . . . . Parts Recycled . | . . . . . . . . . . . . . . . . . . . . . . Recycled Matter . | . . . . . . . . . . . . . . . . . . . . . . Retrieved Matter . | . . . . . . . . . . . . . . . . . . . . . . Retrieved Components . | . . . . . . . . . . . . . . . . . . . . . . Parts Scanalyzed . | . . . . . . . . . . . . . . . . . . . . . . Part Schematics Acquired . | . . . . . . . . . . . . . . . . . . . . . . Parts Damaged . | . . . . . . . . . . . . . . . . . . . . . . Bothacking | -11 -10 -9 -8 -8 -7 -6 -6 -6 -6 -5 -5 -5 -5 -4 -4 -4 -4 -3 -2 -1 -1 ------------ Run | Yrd Mat Mat Mat Sto Fac Fac Ext Cet Arc Fac Upp Upp Zhi Pro Fac Arm Lab Res Res Acc Com Used RIF Installer . | . . . . . . . . . . . . . . . . . . . . . . Robots Hacked . | . . . . . . . . . . . . . . . . . . . . . . Non-combat . | . . . . . . . . . . . . . . . . . . . . . . Combat . | . . . . . . . . . . . . . . . . . . . . . . Robot Hacks Applied . | . . . . . . . . . . . . . . . . . . . . . . Relay Couplers Released 3 | . . . . . . . . . . 3 . . . . . . . . . . . Machine Destruction 3 | . . . . . . . . . . 3 . . . . . . . . . . . Fabnet Peak Effective % . | . . . . . . . . . . . . . . . . . . . . . . Robots Rewired 16 | . . . . . . . . . . . . . . 6 . 10 . . . . . Allies Hacked 1 | . . . . . . . . . . . . . . . . 1 . . . . . Hacks Repelled . | . . . . . . . . . . . . . . . . . . . . . . Allies | -11 -10 -9 -8 -8 -7 -6 -6 -6 -6 -5 -5 -5 -5 -4 -4 -4 -4 -3 -2 -1 -1 -------- Run | Yrd Mat Mat Mat Sto Fac Fac Ext Cet Arc Fac Upp Upp Zhi Pro Fac Arm Lab Res Res Acc Com Total Allies 34 | . . . . . . . 6 5 . . . . . 6 . 10 . . . . 7 Largest Group 7 | . . . . . . . 5 7 6 5 3 3 2 6 6 7 . . . . 5 Highest-Rated Group 658 | . . . . . . . 276 658 639 480 281 281 192 288 288 335 . . . . 72 Highest-Rated Ally 159 | . . . . . . . 159 159 159 96 96 96 96 96 50 65 . . . . 15 Total Orders . | . . . . . . . . . . . . . . . . . . . . . . Ally Attacks 383 | . . . . . . . 45 8 7 133 10 11 . 11 43 95 . . . . 20 Total Damage 12112 | . . . . . . . 1002 228 318 4649 195 145 . 264 1633 3274 . . . . 404 Kills 61 | . . . . . . . 5 2 2 31 2 1 . . 4 14 . . . . . Allies Corrupted . | . . . . . . . . . . . . . . . . . . . . . . Allies Melted 2 | . . . . . . . . . . . . . . 1 . 1 . . . . . Intel | -11 -10 -9 -8 -8 -7 -6 -6 -6 -6 -5 -5 -5 -5 -4 -4 -4 -4 -3 -2 -1 -1 ------- Run | Yrd Mat Mat Mat Sto Fac Fac Ext Cet Arc Fac Upp Upp Zhi Pro Fac Arm Lab Res Res Acc Com Robot Analysis Total 8 | . . 1 . . . . . . . . . . 4 . . 1 . 1 . . 1 Derelict Logs Recovered 5 | . . . . . . . . . . . 2 3 . . . . . . . . . Drone Launches . | . . . . . . . . . . . . . . . . . . . . . . Drone Recoveries . | . . . . . . . . . . . . . . . . . . . . . . Exploration | -11 -10 -9 -8 -8 -7 -6 -6 -6 -6 -5 -5 -5 -5 -4 -4 -4 -4 -3 -2 -1 -1 ------------- Run | Yrd Mat Mat Mat Sto Fac Fac Ext Cet Arc Fac Upp Upp Zhi Pro Fac Arm Lab Res Res Acc Com Turns Passed 14076 | 91 428 380 235 359 683 416 1093 396 274 859 820 847 253 644 344 694 627 419 1449 203 2562 Spaces Moved 7259 | 47 217 143 133 173 414 172 599 113 163 460 497 508 150 332 177 326 344 209 684 123 1275 Core 19 | 6 . . . . . . . . . . . . . . . . . . . . 13 Treads 7240 | 41 217 143 133 173 414 172 599 113 163 460 497 508 150 332 177 326 344 209 684 123 1262 Legs . | . . . . . . . . . . . . . . . . . . . . . . Wheels . | . . . . . . . . . . . . . . . . . . . . . . Hover . | . . . . . . . . . . . . . . . . . . . . . . Flight . | . . . . . . . . . . . . . . . . . . . . . . Fastest Speed 50 | 50 160 225 152 155 155 155 156 160 160 160 160 160 160 160 160 160 160 160 160 160 50 Average Speed 160 | 158 178 226 152 155 155 155 160 160 160 160 160 160 160 160 160 160 160 160 160 160 153 Slowest Speed 250 | 250 240 240 155 155 158 156 240 160 160 160 160 160 160 160 160 160 160 160 160 160 165 Overloaded Moves . | . . . . . . . . . . . . . . . . . . . . . . Propulsion Burnouts . | . . . . . . . . . . . . . . . . . . . . . . Robots Hopped . | . . . . . . . . . . . . . . . . . . . . . . Cave-ins Triggered . | . . . . . . . . . . . . . . . . . . . . . . Teleports 1 | . . . . . . . . . . . . . . . . 1 . . . . . Exploration Rate (%) 38 | 4 43 24 16 44 12 7 76 65 88 21 63 60 62 44 8 29 99 6 20 4 50 Regions Visited 21 Branch Regions 11 Pre-discovered Areas 5 | . . . . . . . . . . . 1 1 3 . . . . . . . . Known Exits Taken 21 | 1 1 1 1 1 1 1 1 1 1 1 1 1 1 1 1 1 1 1 1 1 . Unknown Exits Taken . | . . . . . . . . . . . . . . . . . . . . . . Scrap Searched 7 | . . . . . . . . . . . 2 1 . 4 . . . . . . . Spaces Dug 7 | . . . . . . . . . . . 6 . . . 1 . . . . . . Terrain Destroyed 330 | . 10 4 . . . . 2 . 2 9 7 1 . 3 6 23 16 4 101 . 142 Melee . | . . . . . . . . . . . . . . . . . . . . . . Projectile 57 | . . . . . . . 2 . 2 9 7 1 . 3 3 8 2 4 11 . 5 AOE 273 | . 10 4 . . . . . . . . . . . . 3 15 14 . 90 . 137 Terrain Rammed . | . . . . . . . . . . . . . . . . . . . . . . Walls Destroyed . | . . . . . . . . . . . . . . . . . . . . . . Machines Disabled . | . . . . . . . . . . . . . . . . . . . . . . Actions | -11 -10 -9 -8 -8 -7 -6 -6 -6 -6 -5 -5 -5 -5 -4 -4 -4 -4 -3 -2 -1 -1 --------- Run | Yrd Mat Mat Mat Sto Fac Fac Ext Cet Arc Fac Upp Upp Zhi Pro Fac Arm Lab Res Res Acc Com Total 8605 | 59 244 171 148 225 442 229 679 327 169 513 505 527 163 395 207 417 389 247 858 128 1563 Wait 279 | . . 2 . 4 . 4 10 179 . 2 . 13 . 1 15 . . . 42 . 7 Move 7238 | 46 216 142 132 172 413 171 598 112 162 459 496 507 149 331 176 325 343 208 683 122 1275 Hop . | . . . . . . . . . . . . . . . . . . . . . . Pick Up 104 | 5 8 7 3 7 4 2 12 8 1 5 . . 2 3 . 6 4 1 7 1 18 Fast Attach 78 | 7 2 . . . 5 . 3 3 . . . . 6 . . 5 9 . 16 . 22 Attach 72 | . 1 2 2 1 2 5 4 . . 5 1 . . . 2 3 1 2 7 2 32 Detach 15 | . . . . . . . 1 3 . 1 . . . . . 2 3 . 3 . 2 Swap 69 | . 3 5 1 4 2 6 7 4 3 5 . . . 2 1 . . 2 8 3 13 Drop 99 | . 5 . . 6 5 1 16 14 . 1 . . 6 4 . 9 10 2 10 . 10 Fire 563 | . 9 13 8 26 8 39 28 4 3 35 8 7 . 28 13 34 19 32 82 . 167 Melee . | . . . . . . . . . . . . . . . . . . . . . . Ram 3 | . . . . . . . . . . . . . . . . . . . . . 3 Kick . | . . . . . . . . . . . . . . . . . . . . . . Crush 14 | 1 . . 2 5 3 1 . . . . . . . . . 1 . . . . 1 Escape Stasis 12 | . . . . . . . . . . . . . . . . . . . . . 12 Rewire 59 | . . . . . . . . . . . . . . 26 . 32 . . . . 1 Trap . | . . . . . . . . . . . . . . . . . . . . . . Miscellaneous . | . . . . . . . . . . . . . . . . . . . . . . Route ------- -11/Scrapyard -10/Materials -9/Materials (discovered 3 exits: *Mat x3) -8/Materials (discovered 4 exits: Fac x3 / *Sto) -8/Storage -7/Factory (discovered 6 exits: *Fac x4 / Low x2) -6/Factory -6/Extension (discovered 2 exits: *Fac / *Cet) -6/Cetus -6/Archives (discovered 3 exits: *Fac / *Hub x2) -5/Factory (discovered 3 exits: *Fac / *Upp x2) -5/Upper Caves -5/Upper Caves -5/Zhirov -4/Proximity Caves -4/Factory (discovered 2 exits: Upp / *Arm) -4/Armory (discovered 3 exits: *Res x2 / *Lab) -4/Lab -3/Research -2/Research -1/Access -1/Command (discovered 2 exits: Sur x2) History --------- Turn | Location | Event 2 | -11/Scrapyard | Met Revision 17 20 | -11/Scrapyard | Identified exit to Materials 20 | -11/Scrapyard | Discovered exit to Materials (range 15) 92 | -11/Scrapyard | Entered Materials 92 | -10/Materials | Evolved 1 slot: Utility x1 320 | -10/Materials | Build established: Hacker-Mutant 477 | -10/Materials | Identified exit to Materials 477 | -10/Materials | Discovered exit to Materials (range 16) 520 | -10/Materials | Entered another Materials area 520 | -9/Materials | Evolved 2 slots: Weapon x2 539 | -9/Materials | Identified exit to Materials 805 | -9/Materials | Build established: Hacker-Gunner 900 | -9/Materials | Entered another Materials area 900 | -8/Materials | Evolved 2 slots: Propulsion x2 931 | -8/Materials | Identified exit to Factory 1046 | -8/Materials | Identified exit to Storage 1046 | -8/Materials | Discovered exit to Storage (range 16) 1135 | -8/Materials | Entered Storage 1417 | -8/Storage | Destroyed 7 combat bots 1494 | -8/Storage | Entered Factory 1494 | -7/Factory | Evolved 2 slots: Utility x2 2089 | -7/Factory | Identified exit to Factory 2089 | -7/Factory | Identified exit to Lower Caves 2177 | -7/Factory | Entered another Factory area 2177 | -6/Factory | Evolved 2 slots: Utility x2 2523 | -6/Factory | Spotted B-75 Beast 2538 | -6/Factory | Destroyed B-75 Beast 2561 | -6/Factory | Identified exit to Extension 2561 | -6/Factory | Discovered exit to Extension (range 16) 2593 | -6/Factory | Entered Extension 2601 | -6/Extension | Disrupted transfer network 2686 | -6/Extension | Rescued a captive Derelict 2847 | -6/Extension | Rescued a captive Derelict 2849 | -6/Extension | Rescued a captive Derelict 2850 | -6/Extension | Lost 3 parts (1n1u1w) 2866 | -6/Extension | Build established: Scavenger-Gunner 2877 | -6/Extension | Rescued a captive Derelict 2898 | -6/Extension | Rescued a captive Derelict 3264 | -6/Extension | Spotted B-75 Beast 3272 | -6/Extension | Destroyed B-75 Beast 3285 | -6/Extension | Spotted B-75 Beast 3296 | -6/Extension | Destroyed B-75 Beast 3450 | -6/Extension | Rescued A7 3583 | -6/Extension | Identified exit to Cetus 3648 | -6/Extension | Identified exit to Factory 3648 | -6/Extension | Discovered exit to Factory (range 10) 3686 | -6/Extension | Entered Cetus 3686 | -6/Cetus | Accompanied by 3 allies (A7) 3691 | -6/Cetus | Acquired a Cetus Manufacturing Module code from A7 3708 | -6/Cetus | Spotted Cetus Guard 3708 | -6/Cetus | Spotted Cetus Guard 3709 | -6/Cetus | Destroyed Cetus Guard 3710 | -6/Cetus | Spotted Cetus Guard 3710 | -6/Cetus | Spotted Cetus Guard 3712 | -6/Cetus | Destroyed Cetus Guard 3725 | -6/Cetus | Destroyed Cetus Guard 3726 | -6/Cetus | Allies destroyed Cetus Guard 3848 | -6/Cetus | Escorted A7 to Cetus Mainframe 3863 | -6/Cetus | Started Cetus Manufacturing Module 3888 | -6/Cetus | Manufactured an Enhanced Grunt 3913 | -6/Cetus | Manufactured an Enhanced Grunt 3938 | -6/Cetus | Manufactured an Enhanced Grunt 3963 | -6/Cetus | Manufactured an Enhanced Grunt 3988 | -6/Cetus | Manufactured an Enhanced Grunt 4055 | -6/Cetus | Identified exit to Archives 4055 | -6/Cetus | Discovered exit to Archives (range 15) 4082 | -6/Cetus | Entered Archives 4082 | -6/Archives | Accompanied by 6 allies (A7) 4087 | -6/Archives | Received a hacking code to weaken MAIN.C 4128 | -6/Archives | Discovered exit to Factory (range 15) 4146 | -6/Archives | Identified exit to Hub_04(d) 4146 | -6/Archives | Discovered exit to Hub_04(d) (range 14) 4163 | -6/Archives | Discovered exit to Hub_04(d) (range 13) 4237 | -6/Archives | Unable to access archive contents 4253 | -6/Archives | Unable to access archive contents 4356 | -6/Archives | Entered Factory 4356 | -5/Factory | Accompanied by 5 allies 4356 | -5/Factory | Evolved 2 slots: Utility x2 4517 | -5/Factory | Garrison activated, responded to threat 4680 | -5/Factory | Identified exit to Factory 4680 | -5/Factory | Discovered exit to Factory (range 10) 4956 | -5/Factory | First assault squad dispatched 5044 | -5/Factory | Identified exit to Upper Caves 5091 | -5/Factory | Garrison activated, responded to threat 5215 | -5/Factory | Entered Upper Caves 5215 | -5/Upper Caves | Accompanied by 3 allies 5265 | -5/Upper Caves | Learned location of Armory (-4) 5387 | -5/Upper Caves | Learned Factory stockpile data 5947 | -5/Upper Caves | Attracted the attention of an 0b10 checkpoint 6027 | -5/Upper Caves | Identified exit to Upper Caves 6027 | -5/Upper Caves | Discovered exit to Upper Caves (range 7) 6035 | -5/Upper Caves | Entered another Upper Caves area 6035 | -5/Upper Caves | Accompanied by 3 allies 6082 | -5/Upper Caves | Learned 8 Factory zone layouts 6303 | -5/Upper Caves | Learned 4 Factory zone layouts 6844 | -5/Upper Caves | Identified exit to Zhirov 6844 | -5/Upper Caves | Discovered exit to Zhirov (range 14) 6882 | -5/Upper Caves | Entered Zhirov 6882 | -5/Zhirov | Accompanied by 2 allies 6882 | -5/Zhirov | Identified exit to Proximity Caves 6882 | -5/Zhirov | Discovered exit to Proximity Caves (range 3) 6911 | -5/Zhirov | Met Zhirov 6950 | -5/Zhirov | Learned location of Quarantine (-3) 6950 | -5/Zhirov | Learned location of Testing (-2) 6950 | -5/Zhirov | Learned location of Command (-1) 6980 | -5/Zhirov | Zhirov requested help retrieving the SGEMP Prototype 7006 | -5/Zhirov | Found Alien Artifact 7028 | -5/Zhirov | Found Alien Artifact 7028 | -5/Zhirov | Identified Integrated Dissipator 7028 | -5/Zhirov | Installed Integrated Dissipator, increased core heat dissipation (+20) 7135 | -5/Zhirov | Entered Proximity Caves 7135 | -4/Proximity Caves | Accompanied by 2 allies 7177 | -4/Proximity Caves | Attracted the attention of an 0b10 checkpoint 7371 | -4/Proximity Caves | Encountered a Derelict sapper outpost 7517 | -4/Proximity Caves | Snuck into a huge 0b10 base via the rear entrance 7563 | -4/Proximity Caves | Derelicts attacked a huge 0b10 base 7623 | -4/Proximity Caves | Discovered exit to Factory (range 6) 7658 | -4/Proximity Caves | Lost 4 allies 7779 | -4/Proximity Caves | Entered Factory 7779 | -4/Factory | Accompanied by 6 allies 7779 | -4/Factory | Evolved 2 slots: Power x1, Utility x1 7780 | -4/Factory | Identified exit to Upper Caves 7780 | -4/Factory | Identified exit to Armory 8109 | -4/Factory | Lost 4 allies 8123 | -4/Factory | Entered Armory 8123 | -4/Armory | Accompanied by 2 allies 8124 | -4/Armory | Met VL-GR5, who suggested a friendly competition 8138 | -4/Armory | Found Prototype Processor 8138 | -4/Armory | Identified Exp. Melee Analysis Suite 8275 | -4/Armory | Identified exit to Research 8283 | -4/Armory | Lost the competition with VL-GR5 8396 | -4/Armory | VL-GR5 did not survive their latest romp through Armory 8416 | -4/Armory | Found Prototype Device 8416 | -4/Armory | Identified Adv. Particle Accelerator 8542 | -4/Armory | Spotted B-86 Titan 8574 | -4/Armory | Allies destroyed B-86 Titan 8815 | -4/Armory | Identified Transdimensional Reconstructor 8815 | -4/Armory | Warped through subspace to slip node 8815 | -4/Armory | Identified exit to Lab 8815 | -4/Armory | Discovered exit to Lab (range 1) 8817 | -4/Armory | Entered Lab 8817 | -4/Lab | Discovered exit to Research (range 9) 8837 | -4/Lab | Unable to decrypt terminal 8837 | -4/Lab | Opened the door to a hidden lab 8838 | -4/Lab | Gained access to the hidden lab's interior 8841 | -4/Lab | Detected by scanners 8843 | -4/Lab | Lost 3 allies 8862 | -4/Lab | Confronted by A5 8890 | -4/Lab | Destroyed A5 8928 | -4/Lab | Unable to decrypt terminal 8979 | -4/Lab | Unable to decrypt terminal 8979 | -4/Lab | Unable to decrypt terminal 9000 | -4/Lab | Found Prototype Special Weapon 9000 | -4/Lab | Identified Gui. Remote Datajack 9050 | -4/Lab | Found Alien Artifact 9050 | -4/Lab | Identified Core Reset Matrix 9050 | -4/Lab | Used Core Reset Matrix 9054 | -4/Lab | Sensed 3 artifacts in vicinity 9060 | -4/Lab | Unable to decrypt terminal 9116 | -4/Lab | Found Prototype Hackware 9116 | -4/Lab | Identified Quantum Router 9121 | -4/Lab | Found Prototype Protection 9121 | -4/Lab | Identified Exp. Powered Armor 9126 | -4/Lab | Found Prototype Energy Cannon 9126 | -4/Lab | Identified Warp Cannon 9131 | -4/Lab | Found Warp Cannon 9148 | -4/Lab | Unable to decrypt terminal 9189 | -4/Lab | Found Integrated Reactor 9189 | -4/Lab | Installed Integrated Reactor, increased core energy generation (+10) 9201 | -4/Lab | Found Transdimensional Reconstructor 9216 | -4/Lab | Found Core Regenerator 9308 | -4/Lab | Unable to decrypt terminal 9311 | -4/Lab | Found LC Capacitor 9402 | -4/Lab | Discovered exit to Research (range 6) 9414 | -4/Lab | Build established: Hacker-Gunner 9444 | -4/Lab | Entered Research 9444 | -3/Research | Evolved 2 slots: Utility x2 9826 | -3/Research | Identified exit to Research 9826 | -3/Research | Discovered exit to Research (range 14) 9863 | -3/Research | Entered another Research area 9863 | -2/Research | Evolved 2 slots: Utility x2 10371 | -2/Research | Intercept squad dispatched 10392 | -2/Research | Spotted Tracker 10393 | -2/Research | Spotted Tracker 10408 | -2/Research | Destroyed Tracker 10443 | -2/Research | Spotted Combat Programmer 10451 | -2/Research | Destroyed Combat Programmer 10453 | -2/Research | Spotted Combat Programmer 10458 | -2/Research | Destroyed Combat Programmer 10537 | -2/Research | Lost 4 parts (1p3u) 10666 | -2/Research | Destroyed Tracker 10681 | -2/Research | Found Prototype Device 10681 | -2/Research | Identified Exp. Phase Shifter 10685 | -2/Research | Found Prototype Processor 10685 | -2/Research | Identified Exp. Targeting Computer 11090 | -2/Research | Intercept squad dispatched 11110 | -2/Research | Spotted Tracker 11111 | -2/Research | Spotted Tracker 11111 | -2/Research | Spotted Tracker 11123 | -2/Research | Destroyed Tracker 11123 | -2/Research | Destroyed Tracker 11137 | -2/Research | Destroyed Tracker 11142 | -2/Research | Found Exp. Targeting Computer 11147 | -2/Research | Spotted Combat Programmer 11151 | -2/Research | Spotted Combat Programmer 11152 | -2/Research | Spotted Combat Programmer 11159 | -2/Research | Destroyed Combat Programmer 11169 | -2/Research | System corruption reached 10% 11173 | -2/Research | Destroyed Combat Programmer 11185 | -2/Research | Destroyed Combat Programmer 11189 | -2/Research | Lost 3 parts (1u2w) 11206 | -2/Research | Destroyed 7 combat bots 11279 | -2/Research | Identified exit to Access 11279 | -2/Research | Discovered exit to Access (range 15) 11312 | -2/Research | Entered Access 11312 | -1/Access | Evolved 2 slots: Utility x2 11374 | -1/Access | Found Unknown Launcher 11374 | -1/Access | Identified Gamma Bomb Array 11504 | -1/Access | Identified exit to Command 11504 | -1/Access | Discovered exit to Command (range 8) 11515 | -1/Access | Entered Command 11923 | -1/Command | Spotted M Guard 11923 | -1/Command | Spotted M Guard 11923 | -1/Command | Spotted Combat Programmer 11925 | -1/Command | Spotted Combat Programmer 11955 | -1/Command | Failed to warp due to unstable space 11968 | -1/Command | Destroyed Combat Programmer 11974 | -1/Command | Destroyed M Guard 11981 | -1/Command | System corruption reached 10% 12001 | -1/Command | Destroyed M Guard 12010 | -1/Command | Destroyed Combat Programmer 12010 | -1/Command | All MAIN.C guards destroyed 12020 | -1/Command | Used Core Regenerator, restored core integrity (+326) 12038 | -1/Command | Lost 18 parts (3p2n7u6w) 12306 | -1/Command | Build established: Scavenger-Gunner 12682 | -1/Command | Destroyed 7 combat bots 13038 | -1/Command | Phase Generator disabled 13055 | -1/Command | Found Prototype Launcher 13055 | -1/Command | Identified Com. Tesla Bomb Launcher 13361 | -1/Command | Identified exit to Surface 13851 | -1/Command | Spotted B-99 Colossus 13870 | -1/Command | Destroyed B-99 Colossus 13891 | -1/Command | Found Prototype Ballistic Gun 13891 | -1/Command | Identified Multirail 13897 | -1/Command | Found Unknown Protection 13897 | -1/Command | Identified Hvy. Reflective Plating 13963 | -1/Command | Spotted Executioner 13963 | -1/Command | Spotted Executioner 13963 | -1/Command | Spotted Executioner 13963 | -1/Command | Spotted Executioner 13963 | -1/Command | Spotted Striker 13963 | -1/Command | Spotted Striker 13963 | -1/Command | Spotted Alpha 7 13963 | -1/Command | Spotted Alpha 7 13966 | -1/Command | Spotted B-99 Colossus 13966 | -1/Command | Spotted B-99 Colossus 13972 | -1/Command | Destroyed Striker 13992 | -1/Command | Destroyed Alpha 7 13995 | -1/Command | Destroyed Executioner 14002 | -1/Command | Destroyed Executioner 14002 | -1/Command | Destroyed Executioner 14008 | -1/Command | Destroyed Alpha 7 14021 | -1/Command | Core integrity fell below 50% 14026 | -1/Command | Destroyed Executioner 14047 | -1/Command | Destroyed 7 combat bots 14056 | -1/Command | Released all parts (12) 14062 | -1/Command | Emitted hypermatrix ping 14067 | -1/Command | Assembled emerged from beneath the floor 14067 | -1/Command | Core integrity fell below 20% 14077 | -1/Command | Destroyed by G-73 Enforcer with Heavy Laser Last Messages --------------- 14073_ Slug penetrates Wall. 14073_ as-55813 destroyed. 14073_ Field strength at 41. 14073_ P-80 Master resets B-99 Colossus, system corruption cleaned. 14074_ Slug penetrates Recycling Unit. 14074_ Slug penetrates B-99 Colossus. 14074_ Field strength at 27. 14074_ Slug penetrates P-80 Master. 14075_ Recycling Unit collapses. 14075_ Chain reaction triggered in Mic. Antimatter Reactor. 14075_ as-22492 destroyed. 14075_ Stasis field depleted. 14075_ Field strength at 13. 14076_ System corrupted: Energy discharge (-24). 14076_ Field strength at 7. 14077_ The unstable cave ceiling collapses. 14077_ Adv. Heat Sink crushed. 14077_ as-47682 destroyed. 14077_ Stasis field depleted. 14077_ Penetrated by Slug. Map ----- +----------------------------------------------------+ | ???????????# ## T#?????????# + "" | | ???????????# ## = ""#?????????##### "" | | ???????????# "" ##!/ ""#?????????????# T" | | ???????????# """" ##!/ ""#???????####??# " | | ???????????# """" ##!/ ######## " ???# | | #########??# "" ## # !%[#????#### | | ########### # [= #???????? | | ??????????# # """#???????? | | ??????????# # """#???????? | | ? + R"#???????? | | ####### ?? # """#???????? | | ###?????? ?? # "" #???????? | | ???????? #]] #???????? | | ????????#############+##### #]! #???????? | | #?????????????????????????# #####+####???????? | | #?????????????????????????# #???# #??###?????? | | #?????????????????????????# #???# #? #?????? | | #?????????????????????????# #???# #?! #?????? | | ##????????????????????????????# #???# # #?????? | | ????????????????????????????### ##### # #?????? | | ##??????????#???????????????# + #?????? | | #????????? ??????????????# # #?????? | | #??????? ?#########???# ########???? | | #??????? ^ # # # # ;#### "" | | #??????????" ^ ^ ^ %#;# "" | | #??????????"^ ^^ ^^BB ^@ "Y h | | #??????????"^ ^ ^^ BB h h | | #???????